bitfinex-derivatives/quotes_ETHF0:USTF0_20250828
["timestamp","ask_amount","ask_price","bid_price","bid_amount"]
[1756352536922,1.4559,4543.1,4543.0,0.9899]
[1756352539422,0.1861,4542.7,4542.6,0.7104]
[1756352539622,0.9423,4542.6,4542.5,3.60402]
[1756352539826,1.4559,4542.6,4542.5,4.8529]
[1756352540719,1.1746,4542.6,4542.5,4.8529]
[1756352544120,0.1861,4542.6,4542.5,4.8529]
[1756352544326,0.5084,4543.3,4543.2,1.6151]
[1756352544527,0.8033,4543.6,4543.5,1.6151]
[1756352544720,20.206,4543.6,4543.5,1.6151]
[1756352544919,20.7144,4543.6,4543.5,1.6151]
[1756352545120,21.0039,4543.6,4543.5,1.6151]
[1756352545424,21.2139,4543.6,4543.5,1.6151]
[1756352546119,21.4166,4543.6,4543.5,1.6151]
[1756352546725,31.695,4544.0,4543.8,2.0112]
[1756352546927,20.204,4543.9,4543.8,2.0112]
[1756352547628,20.7124,4543.9,4543.8,2.0112]
[1756352549426,0.5084,4543.9,4543.8,2.0112]
[1756352549631,31.695,4544.0,4543.8,1.0455]
[1756352549928,0.5084,4544.4,4544.3,1.1703]
[1756352550123,20.4056,4544.4,4544.3,1.6151]
[1756352550424,0.7184,4545.1,4545.0,0.4638]
[1756352550627,21.4106,4545.1,4545.0,1.6151]
[1756352550828,21.6875,4545.1,4545.0,1.6151]
[1756352552126,1.4875,4545.1,4545.0,1.6151]
[1756352552327,21.6865,4545.1,4545.0,1.6151]
[1756352555327,0.3038,4545.1,4545.0,1.6151]
[1756352555634,21.6815,4545.1,4545.0,0.2592]
[1756352555836,1.4875,4545.0,4544.9,0.39601]
[1756352556727,1.4875,4545.0,4544.9,1.34301]
[1756352556922,1.4875,4545.0,4544.9,2.01111]
[1756352557125,33.1915,4545.5,4545.4,1.32327]
[1756352557329,53.1066,4545.5,4545.4,2.01107]
[1756352557729,52.4044,4545.5,4545.4,2.01107]
[1756352557934,52.1006,4545.5,4545.4,2.01107]
[1756352558335,52.4044,4545.5,4545.4,2.01107]
[1756352558538,53.1066,4545.5,4545.4,2.01107]
[1756352559926,53.3835,4545.5,4545.4,2.01107]
[1756352560323,1.2848,4545.4,4545.3,0.39597]
[1756352560535,1.4875,4545.4,4545.3,0.39597]
[1756352560832,1.4875,4545.4,4545.3,2.01107]
[1756352561835,21.6755,4545.4,4545.3,2.01107]
[1756352563229,1.4875,4545.4,4545.3,2.01107]
[1756352563430,21.6735,4545.4,4545.3,2.01107]
[1756352563631,1.4875,4545.4,4545.3,2.01107]
[1756352563831,21.6725,4545.4,4545.3,2.01107]
[1756352568242,1.4875,4545.4,4545.3,2.01107]
[1756352568439,21.6695,4545.4,4545.3,2.01107]
[1756352568939,21.6695,4545.4,4545.3,1.73317]
[1756352570345,21.6695,4545.4,4545.3,2.01107]
[1756352572642,1.2416,4546.2,4546.1,0.4175]
[1756352572840,1.4528,4546.2,4546.1,1.3696]
[1756352573035,21.6298,4546.2,4546.1,1.3696]
[1756352574039,1.4528,4546.9,4546.8,1.3696]
[1756352574347,1.1856,4546.9,4546.8,2.07335]
[1756352574644,1.4528,4546.9,4546.8,2.07335]
[1756352575147,0.9397,4547.7,4547.6,1.396]
[1756352575335,0.9397,4547.7,4547.6,0.66828]
[1756352575538,0.9397,4547.4,4547.3,1.7654]
[1756352575738,1.4528,4547.4,4547.3,42.5654]
[1756352576147,1.4528,4547.4,4547.3,42.8733]
[1756352576350,1.1856,4547.4,4547.3,2.0733]
[1756352577046,1.4528,4547.4,4547.3,2.0733]
[1756352577639,3.2078,4548.6,4547.6,0.39577]
[1756352577843,0.1882,4547.3,4547.2,44.40361]
[1756352578042,1.1856,4547.6,4547.5,1.06639]
[1756352578247,0.6813,4547.6,4547.5,1.79179]
[1756352578451,1.4528,4547.6,4547.5,2.07329]
[1756352578639,1.4528,4547.6,4547.5,1.76539]
[1756352579545,1.4528,4547.6,4547.5,2.07329]
[1756352579949,1.4528,4547.6,4547.5,1.76539]
[1756352580148,0.8062,4547.6,4547.5,2.07329]
[1756352580351,1.4528,4547.6,4547.5,2.07329]
[1756352583354,1.4528,4547.6,4547.5,1.76539]
[1756352583558,1.4528,4547.6,4547.5,0.39579]
[1756352583757,0.6466,4547.6,4547.3,0.39581]
[1756352584061,1.4528,4547.4,4547.3,0.39581]
[1756352584252,1.38429167,4547.6,4547.1,0.39582]
[1756352584448,1.38429167,4547.6,4546.8,0.4175]
[1756352584449,0.2931,4546.9,4546.8,0.81335]
[1756352584759,0.6466,4546.9,4546.7,44.0078]
[1756352584960,1.4528,4546.8,4546.7,4.97326]
[1756352587452,1.4528,4546.8,4546.7,5.28116]
[1756352595252,1.1856,4546.8,4546.7,5.28116]
[1756352596265,1.4528,4546.8,4546.7,5.28116]
[1756352596664,0.4901,4547.0,4546.9,1.6775]
[1756352596864,0.8923,4547.3,4547.2,2.07332]
[1756352597059,1.1595,4547.3,4547.2,2.07332]
[1756352597266,1.4526,4547.3,4547.2,1.3696]
[1756352597966,1.4526,4547.3,4547.2,1.6775]
[1756352599063,1.4526,4547.3,4547.2,0.2725]
[1756352599569,1.4526,4547.3,4547.2,0.9715]
[1756352599767,1.4526,4547.3,4547.2,1.3696]
[1756352601261,0.9683,4546.8,4546.7,0.4175]
[1756352601466,1.4442,4546.7,4546.6,0.9631]
[1756352601772,1.4442,4546.7,4546.4,0.39588]
[1756352601961,1.4442,4546.6,4546.5,2.04407]
[1756352602165,1.4442,4546.6,4546.5,1.74467]
[1756352602367,1.4442,4546.6,4546.5,0.2696]
[1756352602565,1.4442,4546.6,4546.5,2.04408]
[1756352602867,1.4442,4546.6,4546.5,0.2696]
[1756352603067,0.6658,4546.3,4546.2,4.5637]
[1756352603269,1.4442,4546.3,4546.2,4.9525]
[1756352603470,1.4442,4546.3,4546.2,5.2519]
[1756352603671,1.4442,4546.3,4546.2,4.856]
[1756352604168,0.2103,4546.7,4546.2,4.856]
[1756352604373,0.6876,4546.7,4546.6,2.04407]
[1756352604672,0.8744,4546.7,4546.6,1.6482]
[1756352604873,1.4442,4546.7,4546.6,1.6482]
[1756352607975,1.4442,4546.7,4546.6,0.4654]
[1756352608177,1.4442,4546.7,4546.6,1.3488]
[1756352608870,0.6658,4546.4,4546.3,1.05429]
[1756352609173,0.6694,4546.4,4546.3,2.04409]
[1756352609377,1.4442,4546.6,4546.5,1.6482]
[1756352609978,1.4442,4546.6,4546.5,2.04408]
[1756352610173,1.4442,4546.6,4546.5,1.3488]
[1756352610580,1.4442,4546.6,4546.5,0.2696]
[1756352610882,1.4442,4546.6,4546.5,1.6482]
[1756352611174,0.6658,4546.6,4546.2,3.5072]
[1756352611472,1.4442,4546.3,4546.2,3.2078]
[1756352611676,1.4442,4546.3,4546.2,4.5566]
[1756352611875,1.4442,4546.3,4546.2,4.856]
[1756352618587,1.4442,4546.3,4546.2,4.5566]
[1756352618980,1.4442,4546.3,4546.2,4.856]
[1756352619582,0.2867,4546.6,4546.5,1.6482]
[1756352619780,3.5905,4547.2,4547.1,1.6482]
[1756352620079,1.1611,4547.2,4547.1,1.6482]
[1756352620875,1.4442,4547.2,4547.1,1.6482]
[1756352622086,1.4442,4547.2,4547.1,1.153]
[1756352622679,1.4442,4547.2,4546.8,0.7114]
[1756352622882,2.82849167,4546.9,4546.8,0.412]
[1756352623088,2.61819167,4546.9,4546.7,0.6904]
[1756352623283,1.4442,4546.8,4546.7,1.6482]
[1756352624187,21.6092,4546.8,4546.7,0.2696]
[1756352624382,0.2814,4546.4,4546.2,0.412]
[1756352624688,1.4442,4545.9,4545.8,1.6482]
[1756352630595,21.6092,4545.9,4545.8,1.6482]
[1756352630896,1.4442,4545.9,4545.8,1.6482]
[1756352631193,12.1842,4545.9,4545.8,1.6482]
[1756352631394,21.6092,4545.9,4545.8,1.6482]
[1756352640195,0.4826,4545.9,4545.8,1.6482]
[1756352640502,1.0174,4546.1,4546.0,1.6581]
[1756352640702,11.3284,4546.1,4546.0,1.6581]
[1756352641094,10.8101,4546.1,4546.0,1.6581]
[1756352641296,0.3077,4546.3,4546.2,1.38]
[1756352641497,20.6201,4546.3,4546.2,2.054]
[1756352641998,21.1384,4546.3,4546.2,2.054]
[1756352642201,1.0174,4546.3,4546.2,2.054]
[1756352642404,11.5366,4546.3,4546.2,2.054]
[1756352642702,11.816,4546.3,4546.2,2.054]
[1756352643803,21.655,4546.3,4546.2,2.054]
[1756352644306,21.655,4546.3,4546.2,1.3672]
[1756352644908,21.655,4546.3,4546.2,1.6581]
[1756352647100,21.654,4546.3,4546.2,1.6581]
[1756352649710,1.492,4546.3,4546.2,1.6581]
[1756352649907,21.652,4546.3,4546.2,1.6581]
[1756352651507,1.492,4546.3,4546.2,1.6581]
[1756352651708,12.257,4546.3,4546.2,1.6581]
[1756352653512,1.492,4546.3,4546.2,1.6581]
[1756352653714,12.255,4546.3,4546.2,1.6581]
[1756352654506,21.3716,4546.3,4546.2,1.6581]
[1756352654813,21.651,4546.3,4546.2,1.6581]
[1756352659322,21.649,4546.3,4546.2,1.6581]
[1756352661325,1.492,4546.3,4546.2,1.6581]
[1756352661625,21.649,4546.3,4546.2,1.6581]
[1756352664222,1.492,4546.3,4546.2,1.6581]
[1756352664417,21.647,4546.3,4546.2,1.6581]
[1756352665616,21.647,4546.3,4546.2,0.9677]
[1756352666823,21.647,4546.3,4546.2,0.2781]
[1756352667024,20.821,4546.3,4545.9,0.6896]
[1756352667325,1.46,4546.0,4545.9,0.6896]
[1756352667524,21.614,4546.0,4545.9,1.3748]
[1756352667728,21.614,4546.0,4545.9,1.6678]
[1756352679843,21.614,4546.0,4545.9,1.3748]
[1756352680740,1.46,4546.0,4545.9,1.3748]
[1756352681042,21.608,4546.0,4545.9,1.3748]
[1756352683142,21.608,4546.0,4545.8,0.39593]
[1756352683342,1.46,4545.9,4545.8,0.39593]
[1756352683837,0.9979,4545.8,4545.7,3.2078]
[1756352684040,22.78924481,4545.8,4545.7,3.2078]
[1756352685139,1.46,4545.3,4545.2,3.2078]
[1756352685343,21.606,4545.3,4545.2,3.2078]
[1756352692452,21.603,4545.3,4545.2,3.2078]
[1756352693148,22.98768801,4545.3,4545.2,3.2078]
[1756352694351,0.5702,4545.2,4544.7,3.2078]
[1756352694553,3.2078,4546.0,4544.7,3.2078]
[1756352694554,0.9614,4544.8,4544.7,3.2078]
[1756352694755,21.1034,4544.8,4544.7,3.2078]
[1756352700366,20.8147,4544.8,4544.7,4.8709]
[1756352700964,21.1024,4544.8,4544.7,3.2078]
[1756352701260,21.1024,4544.8,4543.9,1.38468801]
[1756352701261,0.9614,4544.6,4544.5,40.8]
[1756352701461,0.9614,4544.3,4544.2,3.2078]
[1756352701662,21.1014,4544.3,4544.2,3.2078]
[1756352702058,20.5312,4544.3,4543.7,3.2078]
[1756352702262,0.9614,4543.8,4543.3,0.2901]
[1756352702560,0.9614,4543.4,4543.3,0.7148]
[1756352702761,21.1014,4543.4,4543.3,1.466]
[1756352702964,21.1014,4543.4,4543.3,1.6631]
[1756352703661,0.9614,4543.3,4543.2,3.2078]
[1756352704066,0.9614,4543.3,4543.2,4.3964]
[1756352704267,0.9614,4543.3,4543.2,4.6738]
[1756352704669,0.9614,4543.3,4543.2,4.8709]
[1756352704864,20.14,4543.4,4542.7,0.2792]
[1756352705069,0.6737,4542.8,4542.7,0.6709]
[1756352705268,5.9507,4542.8,4542.7,0.6709]
[1756352705469,6.2384,4542.8,4542.7,1.6631]
[1756352705768,0.2825,4542.7,4542.5,0.7021]
[1756352706066,0.9614,4542.6,4542.5,0.2774]
[1756352706368,0.9614,4542.2,4542.1,4.6738]
[1756352706565,10.2194,4542.2,4542.1,4.6738]
[1756352707467,11.60408801,4542.2,4541.4,0.2901]
[1756352707673,0.9614,4541.5,4541.4,0.2901]
[1756352707973,21.1024,4541.5,4541.4,1.6631]
[1756352710170,0.9614,4541.2,4541.0,3.2078]
[1756352710474,0.9614,4541.1,4541.0,3.4979]
[1756352710673,0.9614,4541.1,4541.0,3.9226]
[1756352711171,0.9614,4541.1,4541.0,3.9717]
[1756352711567,0.9614,4541.1,4541.0,4.3964]
[1756352711768,0.9614,4541.1,4541.0,3.2078]
[1756352712078,0.9614,4541.1,4540.5,3.2078]
[1756352712277,0.9614,4540.6,4540.5,3.9226]
[1756352712478,0.9614,4540.6,4540.5,4.8709]
[1756352713779,0.9614,4540.6,4540.5,4.5935]
[1756352714382,0.9614,4540.6,4540.5,4.8709]
[1756352717886,0.9614,4540.6,4540.5,3.9717]
[1756352718183,0.9614,4540.6,4540.5,3.2078]
[1756352718382,0.3912,4540.4,4540.3,0.2901]
[1756352718577,21.1114,4540.4,4540.3,0.2901]
[1756352718785,21.1114,4540.4,4540.3,1.6631]
[1756352719388,0.2825,4540.8,4540.3,0.6709]
[1756352719692,20.15,4540.7,4540.6,2.05949]
[1756352720491,20.15,4540.7,4540.6,1.6631]
[1756352720791,20.8237,4540.7,4540.6,1.6631]
[1756352720989,0.6737,4540.7,4540.6,1.6631]
[1756352721190,20.8247,4540.7,4540.6,1.6631]
[1756352722386,21.1182,4540.7,4540.6,1.6631]
[1756352723687,20.8247,4540.7,4540.6,1.6631]
[1756352724090,21.1182,4540.7,4540.6,1.6631]
[1756352728289,21.1182,4540.7,4540.6,1.3857]
[1756352728696,21.1182,4540.7,4540.6,1.6836]
[1756352729194,21.1182,4540.7,4540.6,0.5693]
[1756352729583,0.9672,4540.7,4540.6,0.5693]
[1756352729787,21.1202,4540.7,4540.6,0.5693]
[1756352729989,21.1202,4540.7,4540.6,0.9826]
[1756352730190,20.8377,4540.7,4539.8,40.8]
[1756352730394,0.3822,4540.1,4540.0,1.05614]
[1756352730594,0.6659,4540.1,4540.0,2.05454]
[1756352730991,0.5772,4540.5,4540.0,0.9984]
[1756352731187,0.9594,4540.5,4540.4,1.6581]
[1756352731391,3.6974,4540.5,4540.4,1.6581]
[1756352732198,3.4039,4540.5,4540.4,1.6581]
[1756352734000,3.6974,4540.5,4540.4,1.6581]
[1756352734597,3.1202,4540.5,4540.3,3.2078]
[1756352734795,0.9594,4540.4,4540.3,3.2078]
[1756352735100,0.9594,4540.4,4540.3,3.495]
[1756352735600,0.3822,4540.2,4540.1,0.2872]
[1756352735791,0.9594,4540.2,4540.1,0.5649]
[1756352735993,0.9594,4540.2,4540.1,1.6581]
[1756352737204,1.49336883,4540.2,4540.1,1.6581]
[1756352737799,1.49336883,4540.2,4540.1,0.5649]
[1756352738701,0.9594,4540.2,4540.1,0.5649]
[1756352739301,0.9594,4540.2,4540.1,0.2872]
[1756352740202,1.49372131,4540.2,4540.1,0.2872]
[1756352741004,0.9594,4540.1,4540.0,0.2872]
[1756352741410,0.9594,4540.1,4540.0,1.6581]
[1756352742503,1.49383574,4540.1,4540.0,0.7584]
[1756352742699,0.1884,4539.9,4539.8,3.495]
[1756352743009,0.9594,4539.9,4539.8,3.495]
[1756352743204,0.9594,4539.9,4539.8,3.9083]
[1756352743408,0.9594,4539.9,4539.8,4.6774]
[1756352744208,0.6659,4539.9,4539.8,4.8659]
[1756352744709,0.2935,4540.4,4539.8,3.8675]
[1756352744910,1.00645184,4540.3,4540.2,1.6581]
[1756352745109,1.20025184,4540.3,4540.2,1.6581]
[1756352745306,0.53435184,4540.3,4540.2,1.6581]
[1756352745505,3.59,4541.0,4540.9,0.6597]
[1756352745810,3.2078,4541.0,4540.9,1.6581]
[1756352746110,3.8737,4541.0,4540.9,1.6581]
[1756352747806,0.6659,4541.0,4540.9,1.6581]
[1756352748308,31.721,4541.1,4541.0,1.1919]
[1756352748611,1.0,4541.2,4541.1,1.6581]
[1756352748811,1.0,4541.2,4541.1,1.83357532]
[1756352749013,0.5684,4541.2,4541.1,1.83357532]
[1756352751209,0.5684,4541.2,4541.1,1.6581]
[1756352752016,1.9522,4541.2,4541.1,1.6581]
[1756352752720,0.5684,4541.2,4541.1,1.6581]
[1756352753804,1.4804,4541.2,4541.1,1.6581]
[1756352754011,1.9522,4541.2,4541.1,1.6581]
[1756352755214,2.2512,4541.2,4541.1,1.6581]
[1756352756316,3.63588801,4541.2,4541.1,0.2872]
[1756352756512,2.2512,4541.2,4541.1,0.4802]
[1756352756715,0.5684,4541.2,4541.1,1.6336]
[1756352757516,0.9995,4541.2,4541.1,1.6336]
[1756352757815,1.2286,4541.2,4541.1,1.6336]
[1756352758021,2.2512,4541.2,4541.1,1.6336]
[1756352758519,1.9522,4541.2,4541.1,1.6336]
[1756352759015,1.9522,4541.2,4541.1,0.2872]
[1756352759016,2.2512,4541.2,4541.1,0.2872]
[1756352759320,2.2512,4541.2,4541.1,1.6336]
[1756352759516,2.2512,4541.2,4541.1,0.747]
[1756352759721,2.2512,4541.2,4541.1,0.2872]
[1756352760318,2.2512,4541.2,4541.1,1.0367]
[1756352760621,2.2512,4541.2,4541.1,0.2872]
[1756352760817,0.7236,4540.9,4540.8,3.2078]
[1756352761016,1.6828,4540.9,4540.8,3.2078]
[1756352761217,0.7301,4540.8,4540.3,3.4893]
[1756352761524,1.6828,4540.4,4540.3,3.4893]
[1756352761718,1.6828,4540.4,4540.3,3.9491]
[1756352761925,1.3838,4540.4,4540.3,4.8357]
[1756352762518,1.38468801,4541.1,4541.0,1.6279]
[1756352762519,1.3838,4541.1,4541.0,1.6279]
[1756352762719,21.5278,4541.1,4541.0,1.6279]
[1756352763120,21.8268,4541.1,4541.0,1.6279]
[1756352763321,1.0226,4541.0,4540.7,0.2815]
[1756352763518,1.6828,4540.8,4540.7,0.9277]
[1756352763719,1.6828,4540.8,4540.7,1.6279]
[1756352766724,1.6828,4540.8,4540.3,3.60421]
[1756352766725,0.6602,4540.8,4540.4,0.2815]
[1756352766925,0.6602,4540.8,4540.3,4.5542]
[1756352766926,0.7236,4540.4,4540.3,4.5542]
[1756352767125,0.4874,4541.1,4541.0,0.193]
[1756352767422,0.4874,4541.1,4541.0,1.6279]
[1756352767423,21.5278,4541.1,4541.0,1.6279]
[1756352768027,21.436,4541.2,4541.1,2.02424]
[1756352768227,20.7124,4541.2,4541.1,2.02424]
[1756352768825,0.5684,4541.2,4541.1,2.02424]
[1756352770931,0.5684,4541.2,4541.1,1.6279]
[1756352772241,1.2286,4541.2,4540.8,3.2078]
[1756352772436,0.6602,4540.7,4540.4,0.2815]
[1756352772741,1.6828,4540.5,4540.4,1.6279]
[1756352772941,1.6828,4540.5,4540.4,0.2815]
[1756352773137,0.6602,4540.2,4540.1,1.6279]
[1756352773443,1.6828,4540.2,4540.1,1.6279]
[1756352774130,1.6828,4540.2,4540.1,0.4745]
[1756352774342,1.6828,4540.1,4540.0,3.2078]
[1756352774534,21.8598,4540.1,4540.0,3.2078]
[1756352776844,21.8598,4540.1,4539.8,0.2815]
[1756352777040,20.8372,4540.1,4539.6,0.67797]
[1756352777241,0.6602,4539.6,4539.5,3.854]
[1756352777443,21.8628,4539.6,4539.5,4.8357]
[1756352782850,1.6665,4539.4,4539.3,0.2914]
[1756352783449,1.6665,4539.4,4539.1,0.39651]
[1756352783450,1.6665,4539.3,4539.2,0.3965]
[1756352783651,21.8345,4539.3,4539.2,1.1631]
[1756352784250,21.8345,4539.3,4539.2,2.0713]
[1756352784954,21.8345,4539.3,4539.2,1.6748]
[1756352785648,21.8345,4539.3,4539.2,0.2914]
[1756352786345,1.0068,4539.2,4539.1,0.1953]
[1756352786549,1.6665,4539.2,4539.1,0.7886]
[1756352788151,1.3659,4539.2,4539.1,1.6748]
[1756352788352,3.268,4539.2,4539.1,2.07132]
[1756352788649,1.3659,4539.9,4539.8,0.6671]
[1756352788849,7.6129,4539.9,4539.8,1.6748]
[1756352789051,7.9135,4539.9,4539.8,1.6748]
[1756352790956,7.9135,4539.9,4539.8,1.2604]
[1756352791155,7.9135,4539.9,4539.8,0.7666]
[1756352791353,7.9135,4539.9,4539.8,0.4867]
[1756352795158,7.9135,4539.9,4539.8,0.2914]
[1756352796260,7.9135,4539.9,4539.8,0.4867]
[1756352796461,7.9135,4539.9,4539.8,0.7886]
[1756352796767,7.9135,4539.9,4539.8,0.4867]
[1756352797065,7.9135,4539.9,4539.8,0.2914]
[1756352797465,9.29818801,4539.9,4539.8,0.2914]
[1756352797655,8.29138801,4539.9,4539.6,0.2914]
[1756352797960,1.6665,4539.7,4539.6,0.2914]
[1756352799056,1.0068,4539.6,4539.5,0.2914]
[1756352799363,1.6665,4539.6,4539.5,0.2914]
[1756352799558,1.6665,4539.6,4539.5,0.7886]
[1756352799951,1.6665,4539.6,4539.5,0.3019]
[1756352800157,0.6597,4539.1,4539.0,0.2914]
[1756352800363,1.6665,4539.1,4539.0,0.2914]
[1756352800659,1.6665,4539.1,4539.0,1.6748]
[1756352802363,1.6665,4539.1,4539.0,0.2914]
[1756352802962,1.6665,4539.0,4538.9,3.2078]
[1756352803867,1.6665,4539.0,4538.9,4.8826]
[1756352804066,21.8175,4539.0,4538.9,4.8826]
[1756352804267,21.8175,4539.0,4538.9,4.2763]
[1756352804763,21.8175,4539.0,4538.9,4.8826]
[1756352804965,21.8175,4539.0,4538.9,3.4992]
[1756352805167,1.6665,4538.8,4538.7,0.2914]
[1756352805364,0.6597,4538.6,4538.5,0.2914]
[1756352805567,1.6665,4538.6,4538.5,0.2914]
[1756352806166,1.6665,4538.6,4538.4,3.2078]
[1756352806368,0.6597,4538.6,4538.4,3.2078]
[1756352806566,1.6665,4538.5,4538.4,3.4992]
[1756352806868,1.3659,4538.9,4538.8,1.6748]
[1756352807074,21.5169,4538.9,4538.8,1.6748]
[1756352807262,1.3659,4538.9,4538.8,1.6748]
[1756352807568,7.6125,4538.9,4538.8,1.6748]
[1756352807763,12.9599,4538.9,4538.8,1.6748]
[1756352807959,13.2605,4538.9,4538.8,1.6748]
[1756352808366,1.3659,4538.9,4538.8,1.6748]
[1756352808564,1.3659,4539.1,4539.0,1.6748]
[1756352808867,7.6125,4539.1,4539.0,1.6748]
[1756352809068,1.6665,4539.1,4539.0,1.6748]
[1756352809270,18.1265,4539.1,4539.0,0.2914]
[1756352809663,18.1265,4539.1,4539.0,0.7666]
[1756352809964,18.1265,4539.1,4539.0,1.6748]
[1756352812069,1.6665,4539.1,4539.0,0.2914]
[1756352812266,21.8195,4539.1,4539.0,0.2914]
[1756352813874,21.8195,4539.1,4538.7,0.2876]
[1756352813875,21.8195,4539.1,4538.7,0.2962]
[1756352814273,0.6559,4538.5,4538.4,3.4082]
[1756352814478,21.8025,4538.5,4538.4,3.992]
[1756352814772,21.8025,4538.5,4538.4,4.8548]
[1756352815273,20.8089,4538.5,4537.9,3.504]
[1756352815470,1.6495,4538.0,4537.9,4.8548]
[1756352815680,21.8025,4538.0,4537.9,4.8548]
[1756352816173,21.8025,4538.0,4537.9,4.4477]
[1756352816376,21.8025,4538.0,4537.9,4.1601]
[1756352818178,21.8025,4538.0,4537.9,4.4477]
[1756352818369,0.7105,4538.8,4537.9,3.8639]
[1756352818574,21.099,4538.7,4538.6,1.2399]
[1756352818875,0.6559,4538.1,4538.0,1.647]
[1756352819183,21.5144,4538.1,4538.0,1.647]
[1756352821877,20.158,4538.1,4538.0,0.8887]
[1756352822071,21.5184,4538.1,4538.0,1.647]
[1756352822471,1.3604,4538.1,4538.0,1.647]
[1756352822781,1.6495,4538.7,4538.6,1.647]
[1756352822973,20.8099,4538.7,4538.3,0.2962]
[1756352823272,1.6495,4538.4,4538.3,0.2962]
[1756352823678,1.6495,4538.3,4538.2,0.2962]
[1756352823876,1.6495,4538.3,4537.9,3.2078]
[1756352824072,0.0009,4537.5,4536.9,0.2962]
[1756352824282,0.0009,4537.5,4536.9,1.647]
[1756352824283,0.0009,4537.0,4536.9,1.647]
[1756352824480,12.2569,4537.0,4536.9,1.647]
[1756352825278,0.0009,4537.1,4537.0,1.647]
[1756352825478,16.0389,4537.1,4537.0,1.647]
[1756352825776,19.6319,4537.1,4537.0,1.647]
[1756352827274,0.0009,4537.1,4537.0,1.647]
[1756352827782,24.92748801,4537.5,4537.0,2.0437]
[1756352828078,20.327,4537.4,4537.3,0.6561]
[1756352828275,20.327,4537.4,4537.3,1.647]
[1756352831184,20.322,4537.4,4537.3,1.0632]
[1756352831381,20.322,4537.4,4537.3,1.647]
[1756352832178,4.59248801,4537.5,4537.4,1.647]
[1756352832379,24.91048801,4537.5,4537.4,1.2399]
[1756352832982,24.91048801,4537.5,4537.4,0.2962]
[1756352834282,24.90548801,4537.5,4537.4,1.647]
[1756352834479,24.89848801,4537.5,4537.4,0.7842]
[1756352834986,21.69068801,4537.5,4537.4,0.7842]
[1756352835584,21.69068801,4537.5,4537.4,1.647]
[1756352835779,21.69068801,4537.5,4537.4,1.2399]
[1756352836286,21.69068801,4537.5,4537.4,0.9696]
[1756352836979,1.38468801,4537.8,4537.4,0.6561]
[1756352837284,9.723,4537.7,4537.4,1.05276]
[1756352837584,9.723,4537.7,4537.6,0.4707]
[1756352837785,9.723,4537.7,4537.6,1.4616]
[1756352838288,9.723,4537.7,4537.6,0.2962]
[1756352838485,1.38468801,4537.8,4537.3,0.68427]
[1756352838686,18.96,4537.7,4537.4,0.9909]
[1756352838888,18.96,4537.7,4537.5,0.5838]
[1756352839189,18.96,4537.7,4537.6,0.2962]
[1756352841380,18.9623,4537.7,4537.6,0.2962]
[1756352845588,0.0023,4537.7,4537.6,1.1858]
[1756352845791,9.6293,4537.7,4537.6,1.6493]
[1756352846087,0.0023,4537.7,4537.6,1.6493]
[1756352846391,0.0009,4538.1,4537.8,0.6565]
[1756352846588,9.2609,4538.3,4538.2,0.39659]
[1756352846789,9.2609,4538.3,4538.2,42.83509]
[1756352847085,9.2609,4538.3,4538.2,2.03509]
[1756352848090,0.0009,4538.3,4538.2,2.03509]
[1756352848286,20.272,4538.4,4538.3,2.03508]
[1756352849285,34.9398,4539.0,4538.3,2.20821447]
[1756352849487,20.2703,4538.9,4538.8,1.6385]
[1756352849692,0.0023,4538.9,4538.8,4.8463]
[1756352849891,7.0923,4539.3,4539.2,0.6565]
[1756352850191,0.0023,4539.3,4539.2,1.6385]
[1756352850393,0.0009,4539.3,4539.2,1.6385]
[1756352850693,16.354,4539.4,4539.3,1.6385]
[1756352851287,16.3549,4539.4,4539.3,1.6385]
[1756352851786,0.0009,4539.4,4539.3,1.6385]
[1756352853585,3.2078,4540.1,4539.3,0.982]
[1756352853892,0.0023,4539.9,4539.8,0.7673]
[1756352854683,0.0023,4539.9,4539.8,1.6385]
[1756352854882,4.4603,4540.5,4540.4,1.6385]
[1756352855091,0.0023,4540.5,4540.4,1.6385]
[1756352858399,3.2078,4541.3,4540.5,0.39639]
[1756352858597,0.0014,4540.7,4540.6,1.0642]
[1756352858898,0.0023,4540.7,4540.6,1.0642]
[1756352859099,0.0023,4540.7,4540.6,1.6385]
[1756352862397,0.0023,4540.7,4540.6,1.2308]
[1756352862591,6.09061801,4540.7,4540.1,0.2889]
[1756352862791,0.0009,4540.0,4539.6,0.2889]
[1756352863005,1.87038801,4539.7,4539.6,0.2889]
[1756352863699,0.4857,4539.6,4539.5,3.2078]
[1756352863907,0.1987,4539.6,4539.5,4.5609]
[1756352864399,0.2001,4539.6,4539.5,4.5609]
[1756352864803,0.4857,4539.6,4539.5,4.5609]
[1756352865407,0.4857,4539.6,4539.5,4.8463]
[1756352865807,0.4857,4539.6,4539.5,1.6385]
[1756352866105,0.4857,4539.6,4539.0,3.60432]
[1756352866106,0.4857,4539.6,4539.1,0.5962]
[1756352866303,0.4857,4539.3,4539.2,0.7628]
[1756352866504,20.4348,4539.3,4539.2,1.6385]
[1756352866706,20.237,4539.3,4539.2,1.6385]
[1756352867607,20.4371,4539.3,4539.2,1.6385]
[1756352868909,20.7227,4539.3,4539.2,1.6385]
[1756352869110,20.7227,4539.3,4539.2,0.7628]